[Event "7th Sharjah Masters 2024"]
[Site "Sharjah"]
[Date "2024.05.16"]
[Round "3.5"]
[White "Puranik, Abhimanyu"]
[Black "Maghsoodloo, Parham"]
[Result "1-0"]
[ECO "B90"]
[WhiteElo "2631"]
[BlackElo "2733"]
[Annotator "TA"]
[PlyCount "119"]
[EventDate "2024.05.13"]
[EventType "swiss"]
[EventCountry "UAE"]
[SourceTitle "playchess.com"]
[Source "ChessBase"]
[SourceQuality "1"]
[TimeControl "5400+30"]

{[%evp 56,119,0,0,58,69,91,75,99,47,41,41,31,60,41,52,90,71,101,72,65,63,63,63,66,35,35,35,150,135,206,206,300,307,301,302,303,303,338,341,358,293,306,277,254,0,0,0,0,0,106,240,124,151,1169,1153,29989,29990,29992,-253,29993,29994,29994,29995,29995,29994]} 1. e4 {[%emt 0:00:08]} c5 {[%emt 0:00:27]} 2. Nf3 {[%emt 0:00:20]} d6 {[%emt 0:00:11]} 3. d4 {[%emt 0:00:05]} cxd4 {[%emt 0:00:06]} 4. Nxd4 {[%emt 0:00:04]} Nf6 {[%emt 0:00:08]} 5. Nc3 {[%emt 0:00:09]} a6 {[%emt 0:00:42]} 6. Be3 {[%emt 0:00:59]} e5 {[%emt 0:00:50]} 7. Nb3 {[%emt 0:00:11]} Be7 {[%emt 0:06:34]} 8. f3 {[%emt 0:00:11]} Be6 {[%emt 0:01:16]} 9. Qd2 {[%emt 0:00:32]} h5 {[%emt 0:00:25]} 10. Nd5 {[%emt 0:01:02]} Nxd5 {[%emt 0:00:58]} 11. exd5 {[%emt 0:00:05]} Bf5 {[%emt 0:00:08]} 12. Be2 {[%emt 0:00:28]} a5 {[%emt 0:04:55]} 13. a4 {[%emt 0:00:26]} Nd7 {[%emt 0:01:07]} 14. O-O {[%emt 0:00:29]} O-O {[%emt 0:00:11]} 15. f4 {[%emt 0:00:30]} exf4 {[%emt 0:01:02]} 16. Bxf4 {[%emt 0:00:28]} Bg6 {[%emt 0:09:27]} 17. Bb5 {[%emt 0:03:53]} Nf6 {[%emt 0:09:36]} 18. Rae1 {[%emt 0:06:46]} Ne4 {[%emt 0:00:35]} 19. Qe2 {[%emt 0:01:14]} Bh4 {[%emt 0:04:15]} 20. g3 {[%emt 0:00:14]} Bf6 {[%emt 0:01:02]} 21. Qg2 {[%emt 0:08:54]} Qb6+ {[%emt 0:05:15]} 22. Kh1 {[%emt 0:02:15]} Rae8 {[%emt 0:08:12]} 23. Be3 {[%emt 0:03:03]} Qc7 {[%emt 0:00:28]} 24. Bxe8 {[%emt 0:00:08]} Rxe8 {[%emt 0:00:04]} 25. Bd4 {[%emt 0:00:35]} Bxd4 {[%emt 0:03:31]} 26. Nxd4 {[%emt 0:00:06]} Qc4 {[%emt 0:02:22]} 27. c3 {[%emt 0:01:32]} Re5 {[%emt 0:01:53]} 28. Kg1 {[%emt 0:03:00]} Qxa4 {[%emt 0:01:46]} 29. Ra1 {[%emt 0:12:26]} Qd7 {[%emt 0:05:07]} (29... Qe8 $11) 30. Rxa5 $14 {[%emt 0:00:05]} Ng5 {[%emt 0:00:05]} 31. h4 {[%emt 0:02:46]} Be4 {[%emt 0:00:58]} 32. Ra8+ {[%emt 0:05:51]} (32. Qe2 $1 $16 Bg6 33. Qd2) 32... Kh7 $14 {[%emt 0:00:14]} 33. Qe2 {[%emt 0:00:04]} Bg6 $1 {[%emt 0:00:29]} 34. Qd2 {[%emt 0:03:42]} Ne4 {[%emt 0:03:38]} 35. Qg2 {[%emt 0:02:29]} Qc7 {[%emt 0:09:15]} 36. Rf4 {[%emt 0:07:55]} Qc5 {[%emt 0:08:57]} 37. Kh2 {[%emt 0:03:18]} Nf6 {[%emt 0:00:02]} 38. Nf3 $1 {[%emt 0:01:10]} Nxd5 {[%emt 0:00:04]} 39. Nxe5 {[%emt 0:09:37]} dxe5 {[%emt 0:00:10]} 40. Rfa4 {[%emt 0:01:11]} b5 {[%emt 0:01:42]} 41. Rd8 {[%emt 0:04:28]} Nf6 {[%emt 0:03:53]} ({Better is} 41... bxa4 $14 42. Rxd5 Qe3) 42. Rb4 $1 $16 {[%emt 0:01:17]} Qe3 {[%emt 0:03:01]} (42... Ng4+ $16 {was necessary.} 43. Rxg4 hxg4) 43. Rd2 $1 $18 {[%emt 0:01:10]} (43. Rxb5 $2 Ng4+ 44. Kh3 Be4 $19) 43... e4 {[%emt 0:00:58]} (43... Ng4+ $142 44. Rxg4 hxg4) 44. Qe2 $18 {[%emt 0:00:37]} (44. Rxb5 Ng4+ 45. Kh3 f5 $11) 44... Qa7 {[%emt 0:03:15]} 45. Rdd4 {[%emt 0:03:00]} (45. Qxb5 Ng4+ 46. Kg2 Ne3+ 47. Kf2 Ng4+ 48. Kg2 Ne3+ 49. Kg1 Qa1+ 50. Kf2 Ng4+ 51. Kg2 Ne3+ 52. Kf2 Ng4+ 53. Kg2 Ne3+ 54. Kf2 $11) 45... Ng4+ {[%emt 0:00:19]} 46. Kg2 {[%emt 0:14:37]} f5 {[%emt 0:00:03]} 47. Rxb5 {[%emt 0:00:00]} (47. Qxb5 Qa1 48. Qe2 Bf7 $18) 47... Qa6 {[%emt 0:03:46]} 48. Rd8 {[%emt 0:00:00]} (48. Rxe4 $2 Qc6 $19) 48... Bf7 {[%emt 0:00:01]} 49. Rh8+ {[%emt 0:00:00]} Kg6 {[%emt 0:00:02] [#]} 50. Qd2 $2 {[%emt 0:00:00]} (50. Rxh5 Bc4 51. Rg5+ (51. Qxc4 $2 Ne3+ 52. Kf2 Nxc4 $19) 51... Kh7 52. Rh5+ (52. Qxc4 $2 Ne3+ 53. Kh1 Nxc4 $19) (52. Ra5 $2 Bxe2 53. Rxa6 Bxa6 $19) 52... Kg6 53. Rg5+ (53. Qxc4 $2 Ne3+ 54. Kh3 Nxc4 $19) 53... Kh7 54. Rh5+ (54. Qxc4 $2 Ne3+ 55. Kf2 Nxc4 $19) (54. Ra5 $2 Bxe2 55. Rxa6 Bxa6 $19) 54... Kg6 $11) (50. Rhb8 $1 $18 {[%cal Rb8b6]} Kh7 51. Qd2) 50... e3 $1 $11 {[%emt 0:00:20]} 51. Qd3 {[%emt 0:00:00]} Qc6+ {[%emt 0:01:34]} 52. Kg1 {[%emt 0:00:00]} Qf3 {[%emt 0:00:02]} (52... Be6 $1 $11 53. Rxh5 Qf3 (53... Kxh5 $2 54. Rxf5+ Kh6 55. Rf8 $18) 54. Rg5+ Kh6 55. Rxg4 Qf2+ (55... fxg4 56. Rh5+ Kxh5 57. Qh7#) 56. Kh1 e2 57. Qd2+ f4) 53. Rb6+ $1 $16 {[%emt 0:00:00]} Nf6 {[%emt 0:00:06] [#]} 54. Qf1 $1 {[%emt 0:00:00]} ({Not} 54. Rxf6+ $2 gxf6 55. Qf1 (55. Kh2 Bd5) 55... Qxg3+ 56. Qg2 f4 (56... Qxg2+ 57. Kxg2 Bd5+ 58. Kg3 $11) 57. Qxg3+ fxg3 $19) 54... Qe4 $2 {[%emt 0:01:32]} (54... Qxg3+ $16 55. Qg2 Qg4) 55. Qf4 $18 {[%emt 0:00:01]} Qb1+ {[%emt 0:00:04] [#]} 56. Kh2 $1 {[%emt 0:00:02]} Bd5 {[%emt 0:00:29]} 57. Qg5+ {[%emt 0:00:36]} (57. Qxe3 $2 Qh1#) 57... Kf7 {[%emt 0:00:01]} 58. Rxf6+ $1 {[%emt 0:00:07]} (58. Qxe3 $2 Qh1#) 58... gxf6 {[%emt 0:00:05]} 59. Qg8+ {[%emt 0:00:03]} (59. Qxe3 $2 Qh1#) 59... Ke7 {[%emt 0:00:04]} 60. Qxd5 {[%emt 0:00:28]} 1-0

[Event "7th Sharjah Masters 2024"]
[Site "Sharjah"]
[Date "2024.05.16"]
[Round "3.6"]
[White "Yu, Yangyi"]
[Black "Maurizzi, Marc`Andria"]
[Result "1/2-1/2"]
[ECO "D34"]
[WhiteElo "2729"]
[BlackElo "2618"]
[Annotator "TA"]
[PlyCount "135"]
[EventDate "2024.05.13"]
[EventType "swiss"]
[EventCountry "UAE"]
[SourceTitle "playchess.com"]
[Source "ChessBase"]
[SourceQuality "1"]
[TimeControl "5400+30"]

{[%evp 24,135,27,30,48,36,46,43,58,13,24,0,0,5,7,0,0,0,0,0,0,0,0,0,0,0,0,0,0,0,0,0,0,0,0,0,0,0,0,0,0,0,0,0,0,0,0,0,0,0,12,12,18,0,12,0,0,0,0,0,0,0,0,0,0,0,0,0,0,0,0,0,0,0,0,0,0,0,0,0,0,0,0,0,0,0,0,0,0,0,0,0,0,0,0,0,0,0,0,0,0,0,0,0,0,0,0,0,0,0,0,0,0,0]} 1. c4 {[%emt 0:00:04]} e6 {[%emt 0:00:17]} 2. g3 {[%emt 0:00:15]} d5 {[%emt 0:00:10]} 3. Bg2 {[%emt 0:00:08]} Nf6 {[%emt 0:00:07]} 4. Nf3 {[%emt 0:00:11]} Be7 {[%emt 0:01:19]} 5. O-O {[%emt 0:00:24]} O-O {[%emt 0:01:03]} 6. cxd5 {[%emt 0:00:22]} exd5 {[%emt 0:00:06]} 7. b3 {[%emt 0:00:10]} c5 {[%emt 0:06:30]} 8. d4 {[%emt 0:01:30]} Nc6 {[%emt 0:02:33]} 9. Nc3 {[%emt 0:00:42]} Ne4 {[%emt 0:06:03]} 10. Bb2 {[%emt 0:01:02]} Bf6 {[%emt 0:00:28]} 11. Na4 {[%emt 0:00:32]} Re8 {[%emt 0:09:52]} 12. Rc1 {[%emt 0:00:23]} cxd4 {[%emt 0:02:06]} 13. Nxd4 {[%emt 0:00:17]} Nxd4 {[%emt 0:03:00]} 14. Bxd4 {[%emt 0:00:09]} Bf5 {[%emt 0:01:15]} 15. e3 {[%emt 0:04:14]} Qe7 {[%emt 0:08:19] White is slightly better.} 16. Nc5 {[%emt 0:12:19]} b6 {[%emt 0:07:55]} 17. Nxe4 {[%emt 0:00:38]} dxe4 {[%emt 0:02:48] The position is equal.} 18. Bxf6 {[%emt 0:05:33]} Qxf6 {[%emt 0:00:11]} 19. Rc7 {[%emt 0:01:14]} Qe5 {[%emt 0:04:50]} 20. Qc2 {[%emt 0:00:16]} Rac8 {[%emt 0:01:48]} 21. Rc1 {[%emt 0:00:17][%cal Rc7c8] [#] aiming for Rxc8.} h5 {[%emt 0:01:10]} 22. Bf1 {[%emt 0:05:00]} Red8 {[%emt 0:04:32]} 23. Rxc8 {[%emt 0:02:03]} Rxc8 {[%emt 0:00:18]} 24. Qd2 {[%emt 0:00:03] Hoping for Rxc8+.} Rxc1 {[%emt 0:00:07]} 25. Qxc1 $11 {[%emt 0:00:10][%mdl 4096] Endgame. KQB-KQB} g6 {[%emt 0:02:31]} 26. h4 {[%emt 0:01:59]} Kg7 {[%emt 0:01:49]} 27. b4 {[%emt 0:01:38]} Bg4 {[%emt 0:02:19]} 28. a3 {[%emt 0:02:07]} Bd7 {[%emt 0:01:21]} 29. Be2 {[%emt 0:01:50]} Be6 {[%emt 0:00:54]} 30. Kf1 {[%emt 0:02:24]} Bh3+ {[%emt 0:00:36]} 31. Ke1 {[%emt 0:01:39]} Be6 {[%emt 0:00:38]} 32. Bd1 {[%emt 0:03:32]} Kh7 {[%emt 0:01:56]} 33. Be2 {[%emt 0:01:27]} Kg7 {[%emt 0:00:04]} 34. Kf1 {[%emt 0:01:02]} Bh3+ {[%emt 0:00:25]} 35. Kg1 {[%emt 0:00:05]} Be6 {[%emt 0:00:04]} 36. Kg2 {[%emt 0:10:06]} Bd7 {[%emt 0:06:03]} 37. Qd2 {[%emt 0:02:44]} Be6 {[%emt 0:01:15]} (37... Bb5 {simplifies} 38. Bxb5 Qxb5 39. Qd4+ Kf8) 38. a4 {[%emt 0:06:45]} Qa1 {[%emt 0:07:02]} 39. a5 {[%emt 0:01:38]} (39. Qd4+ {simplifies} Qxd4 40. exd4 Kf6 41. Kf1) 39... Bh3+ {[%emt 0:01:15]} 40. Kh2 $1 {[%emt 0:00:06]} Be6 {[%emt 0:01:25]} 41. Bb5 {[%emt 0:06:40]} Kh7 {[%emt 0:08:15]} 42. Bd7 {[%emt 0:06:32]} Bxd7 {[%emt 0:02:57]} 43. Qxd7 {[%emt 0:00:02] KQ-KQ} Qf6 {[%emt 0:00:32]} 44. Kg1 {[%emt 0:00:33]} bxa5 {[%emt 0:00:02]} 45. bxa5 {[%emt 0:00:05]} a6 {[%emt 0:00:17]} 46. Qb7 {[%emt 0:01:20]} Qe6 {[%emt 0:00:50]} 47. Qb6 {[%emt 0:01:35]} Qc4 {[%emt 0:00:04]} 48. Qf6 {[%emt 0:00:19]} Kg8 {[%emt 0:00:24]} 49. Kg2 {[%emt 0:00:11]} Qb5 {[%emt 0:01:58]} 50. Qb6 {[%emt 0:01:56] [#] Qxb5 would kill now.} Qc4 {[%emt 0:00:27]} 51. Qb8+ {[%emt 0:00:29]} Kh7 {[%emt 0:00:40]} 52. Qe5 {[%emt 0:01:11]} Kg8 {[%emt 0:00:14]} 53. Qg5 {[%emt 0:04:40]} Kh7 {[%emt 0:00:37]} 54. Qf4 {[%emt 0:02:07]} Kg8 {[%emt 0:00:29]} 55. g4 {[%emt 0:00:55]} hxg4 {[%emt 0:00:06]} 56. Qxg4 {[%emt 0:00:07]} Qb5 {[%emt 0:00:48]} 57. Qg5 {[%emt 0:00:26] White threatens Qxb5 and mate.} Qe2 {[%emt 0:00:53]} 58. Qd8+ {[%emt 0:02:03]} Kh7 {[%emt 0:00:04]} 59. Qd7 {[%emt 0:03:36]} Qf3+ {[%emt 0:00:32]} 60. Kg1 {[%emt 0:00:01]} Kg7 {[%emt 0:00:56]} 61. Qd4+ {[%emt 0:02:07]} Kg8 {[%emt 0:00:34]} 62. Qd6 {[%emt 0:00:59]} Qf5 {[%emt 0:00:46]} 63. Qd8+ {[%emt 0:00:25]} Kg7 {[%emt 0:00:14]} 64. Kf1 {[%emt 0:02:09]} Qh3+ {[%emt 0:00:27]} 65. Ke1 {[%emt 0:01:12]} Qh1+ {[%emt 0:00:04]} 66. Ke2 {[%emt 0:00:33]} Qf3+ {[%emt 0:00:04]} 67. Ke1 {[%emt 0:00:06]} Qh1+ {[%emt 0:00:03]} 68. Ke2 {[%emt 0:00:22] Weighted Error Value: White=0.04 (flawless) /Black=0.02 (flawless) .  Inaccurate:     	White=1     	---        OK:         	White=19    	Black=27     Strong:       	White=1     	---} 1/2-1/2

[Event "7th Sharjah Masters 2024"]
[Site "Sharjah"]
[Date "2024.05.16"]
[Round "3.7"]
[White "Yuffa, Daniil"]
[Black "Sarana, Alexey"]
[Result "1/2-1/2"]
[ECO "A09"]
[WhiteElo "2617"]
[BlackElo "2706"]
[Annotator "TA"]
[PlyCount "71"]
[EventDate "2024.05.13"]
[EventType "swiss"]
[EventCountry "UAE"]
[SourceTitle "playchess.com"]
[Source "ChessBase"]
[SourceQuality "1"]
[TimeControl "5400+30"]

{[%evp 9,71,0,0,1,2,0,1,-8,19,24,27,18,44,39,39,41,46,35,33,21,31,8,35,31,20,20,29,27,23,17,9,8,15,0,0,0,0,0,0,0,0,11,58,55,64,45,63,46,64,45,98,54,67,41,34,27,26,0,0,0,0,0,39,67]} 1. Nf3 {[%emt 1:31:00]} d5 {[%emt 1:31:00]} 2. c4 {[%emt 0:00:30]} d4 {[%emt 0:00:30]} 3. b4 {[%emt 0:00:30]} c5 {[%emt 0:00:30]} 4. b5 {[%emt 0:00:30]} Qc7 {[%emt 0:00:30]} 5. g3 {[%emt 0:00:30]} e5 {[%emt 0:00:30]} 6. d3 {[%emt 0:00:30]} Nf6 {[%emt 0:00:30]} 7. Bg2 {[%emt 0:00:30]} Bd6 {[%emt 0:00:30]} 8. O-O {[%emt 0:00:30][%cal Bh1f1,Bf1e1,Be1e5][%mdl 32] The position is equal.} Nbd7 {[%emt 0:00:30][%cal Bb8d7,Bd7f8,Bf8e6][%mdl 32]} 9. a4 {[%emt 0:00:30]} Nf8 {[%emt 0:00:30]} 10. e3 {[%emt 0:00:30]} Ne6 {[%emt 0:00:30]} 11. a5 {[%emt 0:00:30]} Rb8 {[%emt 0:00:30]} 12. exd4 {[%emt 0:00:30]} cxd4 {[%emt 0:00:30]} 13. Re1 {[%emt 0:00:30]} O-O {[%emt 0:00:30] [#]} 14. b6 $1 {[%emt 0:00:30]} axb6 {[%emt 0:00:30]} 15. Na3 {[%emt 0:00:30]} Bd7 {[%emt 0:00:30]} ({Much weaker is} 15... bxa5 16. Nb5 Qe7 17. Nxd6 (17. Rxa5 Bb4 $14) 17... Qxd6 18. Ba3 $14 (18. Rxe5 b6 $14) (18. Rxa5 e4 $16) (18. Nxe5 Qc7 $14)) 16. axb6 {[%emt 0:00:30]} Qxb6 {[%emt 0:00:30]} 17. Nxe5 {[%emt 0:00:30]} Bxe5 {[%emt 0:00:30]} 18. Rxe5 {[%emt 0:00:30]} Bc6 {[%emt 0:00:30]} 19. Bh3 {[%emt 0:00:30]} Nd7 {[%emt 0:00:30]} 20. Re1 {[%emt 0:00:30][%cal Oa1b1]} Ndc5 {[%emt 0:00:30]} 21. Nc2 {[%emt 0:00:30]} Ra8 {[%emt 0:00:30] White must now prevent ...Rxa1.} 22. Ba3 {[%emt 0:00:30] Bxe6 would now be deadly.} Ng5 {[%emt 0:00:30] Excellent horsemanship.} 23. Bg2 {[%emt 0:00:30] Inhibits Nf3+.} Bxg2 {[%emt 0:00:30]} 24. Kxg2 {[%emt 0:00:30]} Qc6+ {[%emt 0:00:30]} 25. f3 {[%emt 0:00:30]} Qd6 {[%emt 0:00:30]} (25... Nge6 $11) 26. Bxc5 $14 {[%emt 0:00:30]} Qxc5 {[%emt 0:00:30]} 27. Rb1 {[%emt 0:00:30][%cal Ob1b5] Hoping for Rb5!} Qc8 {[%emt 0:00:30]} 28. Rb5 {[%emt 0:00:30]} ({Of course not} 28. Nxd4 Rd8 29. f4 Rxd4 $11) 28... Ne6 {[%emt 0:00:30]} 29. Nb4 {[%emt 0:00:30]} Re8 {[%emt 0:00:30]} (29... Ra3 $14) 30. Qd2 {[%emt 0:00:30]} h6 {[%emt 0:00:30]} 31. Rbe5 {[%emt 0:00:30] White has more active pieces.} (31. Nd5 {keeps more tension.} Qc6 32. Re4 Ra1 33. f4) 31... Qd7 {[%emt 0:00:30]} 32. f4 {[%emt 0:00:30]} Nc7 {[%emt 0:00:30]} 33. Rxe8+ {[%emt 0:00:30]} Rxe8 {[%emt 0:00:30]} 34. Rxe8+ {[%emt 0:00:30]} Qxe8 {[%emt 0:00:30]} 35. Qf2 {[%emt 0:00:30]} Qa4 {[%emt 0:00:30] [#]} 36. Qxd4 $1 {[%emt 0:00:30] Weighted Error Value: White=0.07 (flawless) /Black=0.10 (very precise) .  Mistake:       	---       	Black=2      Inaccurate:     	White=3     	Black=4      OK:         	White=9     	Black=15     Best:        	White=2     	---} 1/2-1/2

[Event "7th Sharjah Masters 2024"]
[Site "Sharjah"]
[Date "2024.05.16"]
[Round "3.8"]
[White "Sindarov, Javokhir"]
[Black "Petrosyan, Manuel"]
[Result "1/2-1/2"]
[ECO "C54"]
[WhiteElo "2684"]
[BlackElo "2618"]
[Annotator "TA"]
[PlyCount "94"]
[EventDate "2024.05.13"]
[EventType "swiss"]
[EventCountry "UAE"]
[SourceTitle "playchess.com"]
[Source "ChessBase"]
[SourceQuality "1"]
[TimeControl "5400+30"]

{[%evp 26,94,27,24,20,23,14,11,17,18,20,27,18,26,8,27,29,6,8,7,32,0,39,34,60,36,45,40,41,34,31,38,52,3,0,-106,-104,-85,-82,-93,-23,-21,-23,-14,0,0,0,0,0,-7,-8,-3,-3,-4,-4,0,0,0,0,-8,-8,-8,-8,-8,-8,-8,-8,-8,-8,-8,-8]} 1. e4 {[%emt 1:31:00]} e5 {[%emt 1:31:00]} 2. Nf3 {[%emt 0:00:30]} Nc6 {[%emt 0:00:30]} 3. Bc4 {[%emt 0:00:30]} Bc5 {[%emt 0:00:30]} 4. O-O {[%emt 0:00:30]} Nf6 {[%emt 0:00:30]} 5. d3 {[%emt 0:00:30]} O-O {[%emt 0:00:30]} 6. c3 {[%emt 0:00:30]} d6 {[%emt 0:00:30]} 7. Re1 {[%emt 0:00:30]} a5 {[%emt 0:00:30] now supersedes 7...a6. C54: Giuoco Piano: 4 c3 Nf6, main lines with 5 d4 and 5 d3.} 8. Bg5 {[%emt 0:00:30]} h6 {[%emt 0:00:30]} 9. Bh4 {[%emt 0:00:30]} Ba7 {[%emt 0:00:30]} 10. Na3 {[%emt 0:00:30]} g5 {[%emt 0:00:30]} 11. Bg3 {[%emt 0:00:30]} g4 {[%emt 0:00:30]} 12. Bh4 {[%emt 0:00:30]} Kg7 {[%emt 0:00:30]} 13. Nc2 {[%emt 0:00:30]} Ne7 {[%emt 0:00:30]} (13... gxf3 14. Qxf3 $11) 14. Bxf6+ {[%emt 0:00:30]} Kxf6 {[%emt 0:00:30]} 15. Nh4 {[%emt 0:00:30]} Kg7 {[%emt 0:00:30]} 16. Ne3 {[%emt 0:00:30]} h5 $146 {[%emt 0:00:30]} ({Predecessor:} 16... Bxe3 17. fxe3 h5 18. d4 Ng8 19. g3 Nf6 20. Qc2 Nh7 21. Rad1 Qe7 22. Bf1 Ng5 {0-1 Dirgantara,D (1940)-Akram,F (2364) Afroasian-ch23 prel-B email 2021}) 17. d4 {[%emt 0:00:30]} f5 $1 {[%emt 0:00:30]} 18. Nhxf5+ {[%emt 0:00:30]} Nxf5 {[%emt 0:00:30]} 19. exf5 {[%emt 0:00:30]} Bxf5 {[%emt 0:00:30]} 20. Nxf5+ {[%emt 0:00:30]} Rxf5 {[%emt 0:00:30]} 21. Qb3 {[%emt 0:00:30]} Bb6 {[%emt 0:00:30]} 22. Bd3 {[%emt 0:00:30]} Rf7 {[%emt 0:00:30]} 23. Re2 {[%emt 0:00:30]} a4 {[%emt 0:00:30]} 24. Qd5 {[%emt 0:00:30]} c6 {[%emt 0:00:30]} 25. Qe4 {[%emt 0:00:30]} Qg5 {[%emt 0:00:30]} 26. dxe5 {[%emt 0:00:30]} dxe5 {[%emt 0:00:30]} 27. Kh1 {[%emt 0:00:30]} Raf8 {[%emt 0:00:30]} 28. Rf1 {[%emt 0:00:30]} h4 {[%emt 0:00:30]} 29. f4 {[%emt 0:00:30]} (29. Qb4 $14 {was preferrable.} Bd8 (29... Rxf2 30. Rexf2 Bxf2 31. Qxb7+ Rf7 32. Qxc6 $16) (29... Bxf2 30. Re4 $14) 30. Qxa4) 29... Rf5 $11 {[%emt 0:00:30]} (29... exf4 30. Qh7+ Kf6 31. Rxf4+ Qxf4 32. Qg6#) 30. Rd2 {[%emt 0:00:30]} (30. fxg5 $2 Rxf1#) (30. Qb4 $2 Rxf4 31. Rxf4 Rxf4 $19) (30. Ree1 $11 {remains equal.} exf4 (30... Rxf4 $2 31. Qh7+ Kf6 32. Rxf4+ Qxf4 33. Qxb7 $18) 31. Qb4) 30... exf4 $17 {[%emt 0:00:30]} (30... Rxf4 31. Qh7+ Kf6 32. Rdd1 $16) 31. Rdd1 {[%emt 0:00:30]} R8f7 {[%emt 0:00:30]} 32. h3 {[%emt 0:00:30]} f3 {[%emt 0:00:30]} (32... gxh3 $17 {[%cal Of4f3] ( -> ...f3!)} 33. gxh3 Kh6 (33... f3 34. Rg1 $16)) 33. hxg4 $11 {[%emt 0:00:30]} fxg2+ {[%emt 0:00:30]} 34. Kxg2 {[%emt 0:00:30]} h3+ {[%emt 0:00:30]} 35. Kh1 $1 {[%emt 0:00:30]} (35. Kxh3 {is a self mate.} Qh6+ 36. Kg3 Bc7+) 35... Rxf1+ {[%emt 0:00:30]} 36. Rxf1 {[%emt 0:00:30]} Rxf1+ {[%emt 0:00:30]} 37. Bxf1 {[%emt 0:00:30]} Qc5 {[%emt 0:00:30]} 38. Qd4+ $1 {[%emt 0:00:30]} Qxd4 {[%emt 0:00:30]} 39. cxd4 {[%emt 0:00:30]} Bxd4 {[%emt 0:00:30]} 40. b3 $1 {[%emt 0:00:30]} Kf6 {[%emt 0:00:30]} 41. bxa4 {[%emt 0:00:30]} c5 {[%emt 0:00:30]} 42. a5 {[%emt 0:00:30]} Kg5 {[%emt 0:00:30]} 43. a6 {[%emt 0:00:30]} bxa6 {[%emt 0:00:30]} (43... Kxg4 $2 {is the wrong capture.} 44. a7 $18 (44. axb7 Be5 $11)) 44. Bxa6 {[%emt 0:00:30]} Kxg4 {[%emt 0:00:30]} 45. a4 {[%emt 0:00:30]} Kg3 {[%emt 0:00:30]} 46. Bc4 {[%emt 0:00:30]} Bc3 {[%emt 0:00:30]} 47. Be6 {[%emt 0:00:30]} Kf4 {[%emt 0:00:30]} 1/2-1/2

[Event "7th Sharjah Masters 2024"]
[Site "Sharjah"]
[Date "2024.05.16"]
[Round "3.9"]
[White "Aditya Mittal"]
[Black "Shankland, Sam"]
[Result "0-1"]
[ECO "E94"]
[WhiteElo "2608"]
[BlackElo "2671"]
[Annotator "TA"]
[PlyCount "98"]
[EventDate "2024.05.13"]
[EventType "swiss"]
[EventCountry "UAE"]
[SourceTitle "playchess.com"]
[Source "ChessBase"]
[SourceQuality "1"]
[TimeControl "5400+30"]

{[%evp 15,98,31,34,25,53,47,60,65,72,69,73,77,80,52,61,38,36,40,39,35,51,38,43,39,53,50,53,0,0,0,81,0,0,0,0,0,0,-16,-18,-23,-24,-10,-18,-24,0,-34,-30,-48,-19,-56,-70,-70,-82,-123,-101,-192,-185,-256,-248,-335,-336,-375,-358,-356,-354,-352,-371,-443,-442,-546,-543,-566,-576,-697,-706,-850,-635,-643,-628,-1565,-1439,-29990,-29991,-29991,-29992]} 1. d4 {[%emt 1:31:00]} Nf6 {[%emt 1:31:00]} 2. Nf3 {[%emt 0:00:30]} g6 {[%emt 0:00:30]} 3. c4 {[%emt 0:00:30]} Bg7 {[%emt 0:00:30]} 4. Nc3 {[%emt 0:00:30]} O-O {[%emt 0:00:30]} 5. e4 {[%emt 0:00:30]} d6 {[%emt 0:00:30]} 6. Be2 {[%emt 0:00:30]} e5 {[%emt 0:00:30]} 7. O-O {[%emt 0:00:30]} Bg4 {[%emt 0:00:30]} 8. d5 {[%emt 0:00:30]} a5 {[%emt 0:00:30]} 9. h3 {[%emt 0:00:30]} Bxf3 {[%emt 0:00:30]} 10. Bxf3 {[%emt 0:00:30]} Nbd7 {[%emt 0:00:30]} 11. Rb1 {[%emt 0:00:30] White is slightly better.} h5 {[%emt 0:00:30]} 12. Bg5 {[%emt 0:00:30]} Qe8 {[%emt 0:00:30]} 13. a3 {[%emt 0:00:30]} Nh7 {[%emt 0:00:30]} 14. Be3 {[%emt 0:00:30]} Bf6 {[%emt 0:00:30]} 15. g3 {[%emt 0:00:30]} Bg5 {[%emt 0:00:30]} 16. Bxg5 {[%emt 0:00:30]} Nxg5 {[%emt 0:00:30]} 17. Bg2 {[%emt 0:00:30]} Qe7 {[%emt 0:00:30][%cal Oh5h4]} 18. f4 {[%emt 0:00:30]} Nh7 {[%emt 0:00:30]} 19. f5 {[%emt 0:00:30]} Kh8 {[%emt 0:00:30]} 20. Kh2 {[%emt 0:00:30]} Rg8 {[%emt 0:00:30]} 21. Qd2 {[%emt 0:00:30]} (21. Nb5 $14) 21... a4 $11 {[%emt 0:00:30]} 22. Nb5 {[%emt 0:00:30]} Ndf6 {[%emt 0:00:30] [#]} (22... Nc5 $11) 23. c5 {[%emt 0:00:30]} dxc5 {[%emt 0:00:30]} 24. d6 {[%emt 0:00:30]} cxd6 {[%emt 0:00:30]} 25. Qxd6 {[%emt 0:00:30]} (25. fxg6 Rxg6 26. Nxd6 Ng4+ 27. hxg4 Rxd6 $19) 25... Rge8 {[%emt 0:00:30]} 26. Rfd1 {[%emt 0:00:30]} Ra6 {[%emt 0:00:30]} 27. Qd2 {[%emt 0:00:30]} Kg7 {[%emt 0:00:30]} 28. Rbc1 {[%emt 0:00:30]} Rc8 {[%emt 0:00:30]} 29. Rc4 {[%emt 0:00:30]} Rcc6 {[%emt 0:00:30]} 30. Qc3 {[%emt 0:00:30]} Nd7 {[%emt 0:00:30] Strongly threatening ...Nb6.} 31. Qd2 {[%emt 0:00:30]} Nhf6 {[%emt 0:00:30]} (31... Rcb6 $5 32. Nc3 (32. Qxd7 Qxd7 33. Rxd7 Rxb5 $17) (32. fxg6 Nhf6 $15) 32... Rd6 $11) 32. Bf1 {[%emt 0:00:30]} Nb6 {[%emt 0:00:30] Excellent horsemanship.} 33. Rc2 {[%emt 0:00:30] White is now going downhill.} Nxe4 {[%emt 0:00:30]} 34. Qe2 {[%emt 0:00:30]} Nf6 {[%emt 0:00:30]} 35. Bg2 {[%emt 0:00:30] [#]} (35. Qf2 $17) 35... e4 $1 $19 {[%emt 0:00:30]} 36. Nc3 {[%emt 0:00:30]} (36. fxg6 $142 fxg6 37. Rg1) 36... gxf5 {[%emt 0:00:30]} 37. Rf1 {[%emt 0:00:30]} Qe5 {[%emt 0:00:30]} 38. Qe3 {[%emt 0:00:30]} Kg6 {[%emt 0:00:30] Repels Qg5+} 39. Rcf2 {[%emt 0:00:30] Hoping for Rxf5.} Nbd5 {[%emt 0:00:30]} 40. Qc1 {[%emt 0:00:30]} Ne7 {[%emt 0:00:30]} ({Resist} 40... Nxc3 41. bxc3 (41. Rxf5 $2 Qxg3+ 42. Kxg3 Ne2+ 43. Kh4 Nxc1 $19) 41... h4 42. Rxf5 Qxg3+ 43. Kh1 $19) 41. Ne2 {[%emt 0:00:30]} Rab6 {[%emt 0:00:30][%cal Ob6b3]} 42. Nf4+ {[%emt 0:00:30]} Kh7 {[%emt 0:00:30]} 43. Qc4 {[%emt 0:00:30]} Kg7 {[%emt 0:00:30]} (43... Rxb2 $2 {perishes.} 44. Qxf7+ Kh8 45. Rxb2 (45. Nxh5 Nfg8 $11) 45... Qxb2 46. Qxe7 $18) 44. Qxa4 {[%emt 0:00:30]} h4 {[%emt 0:00:30]} 45. gxh4 {[%emt 0:00:30]} Ng6 {[%emt 0:00:30]} 46. Kg1 {[%emt 0:00:30]} Rxb2 {[%emt 0:00:30]} 47. Nh5+ {[%emt 0:00:30]} Nxh5 {[%emt 0:00:30]} 48. Rxf5 {[%emt 0:00:30] [#]} Rxg2+ $1 {[%emt 0:00:30]} 49. Kxg2 {[%emt 0:00:30]} Nxh4+ {[%emt 0:00:30] Weighted Error Value: White=0.59/Black=0.14 (very precise) .  Mistake:       	White=4     	Black=1      Inaccurate:     	White=4     	Black=2      OK:         	White=10    	Black=20     Best:        	---       	Black=2      Strong:       	---       	Black=1} 0-1